fUST/lending_fUST_20241223
["ID","MTS","AMOUNT","RATE_DAILY","PERIOD"]
[346319420,1734888641628,-151.0,0.00013698,2]
[346319422,1734888641637,-151.0,0.00013698,2]
[346319424,1734888641646,-151.0,0.00013698,2]
[346319426,1734888641656,-151.0,0.00013698,2]
[346319428,1734888641665,-151.0,0.00013698,2]
[346319430,1734888641674,-500.0,0.00013698,2]
[346319432,1734888641684,-232.432536,0.00013698,2]
[346319434,1734888641693,-539.96,0.00013698,2]
[346319437,1734888641703,-500.0,0.00013698,2]
[346319438,1734888641712,-500.0,0.00013698,2]
[346319440,1734888641721,-520.56644766,0.00013698,2]
[346319442,1734888641730,-500.0,0.00013698,2]
[346319445,1734888641740,-1030.75,0.00013698,2]
[346319447,1734888641749,-151.0,0.00013698,2]
[346319448,1734888641759,-151.0,0.00013698,2]
[346319451,1734888641768,-151.0,0.00013698,2]
[346319453,1734888641779,-151.0,0.00013698,2]
[346319455,1734888641788,-151.0,0.00013698,2]
[346319457,1734888641797,-500.0,0.00013698,2]
[346319458,1734888641806,-769.2,0.00013698,2]
[346319461,1734888641816,-500.0,0.00013698,2]
[346319463,1734888641824,-513.03,0.00013698,2]
[346319465,1734888641834,-666.76,0.00013698,2]
[346319467,1734888641844,-500.0,0.00013698,2]
[346319469,1734888641853,-500.0,0.00013698,2]
[346319471,1734888641862,-500.0,0.00013698,2]
[346319473,1734888641871,-500.0,0.00013698,2]
[346319475,1734888641881,-629.86,0.00013698,2]
[346319477,1734888641890,-673.0,0.00013698,2]
[346319479,1734888641902,-500.0,0.00013698,2]
[346319481,1734888641911,-500.0,0.00013698,2]
[346319483,1734888641920,-2138.17,0.00013698,2]
[346319485,1734888641930,-500.0,0.00013698,2]
[346319487,1734888641939,-500.0,0.00013698,2]
[346319489,1734888641950,-500.0,0.00013698,2]
[346319490,1734888641960,-500.0,0.00013698,2]
[346319492,1734888641969,-745.55,0.00013698,2]
[346319495,1734888641980,-500.0,0.00013698,2]
[346319497,1734888641990,-500.0,0.00013698,2]
[346319498,1734888641999,-500.0,0.00013698,2]
[346319500,1734888642008,-151.0,0.00013698,2]
[346319502,1734888642017,-151.0,0.00013698,2]
[346319504,1734888642026,-151.0,0.00013698,2]
[346319507,1734888642036,-500.0,0.00013698,2]
[346319508,1734888642045,-500.0,0.00013698,2]
[346319510,1734888642054,-500.0,0.00013698,2]
[346319512,1734888642064,-566.37,0.00013698,2]
[346319515,1734888642074,-500.0,0.00013698,2]
[346319516,1734888642083,-244.55,0.00013698,2]
[346319519,1734888642093,-500.0,0.00013698,2]
[346319521,1734888642102,-500.0,0.00013698,2]
[346319523,1734888642111,-1712.65,0.00013698,2]
[346319525,1734888642120,-500.0,0.00013698,2]
[346319527,1734888642130,-813.03,0.00013698,2]
[346319529,1734888642139,-1382.91,0.00013698,2]
[346319530,1734888642148,-1955.95,0.00013698,2]
[346319532,1734888642157,-500.0,0.00013698,2]
[346319534,1734888642167,-500.0,0.00013698,2]
[346319536,1734888642176,-500.0,0.00013698,2]
[346319538,1734888642186,-516.14,0.00013698,2]
[346319541,1734888642195,-500.0,0.00013698,2]
[346319543,1734888642205,-1310.48,0.00013698,2]
[346319544,1734888642215,-508.92331951,0.00013698,2]
[346319546,1734888642224,-492.28703826,0.00013698,2]
[346319549,1734888642234,-4086.56,0.00013698,2]
[346319551,1734888642243,-500.0,0.00013698,2]
[346319552,1734888642252,-500.0,0.00013698,2]
[346319555,1734888642262,-582.33,0.00013698,2]
[346319557,1734888642272,-500.0,0.00013698,2]
[346319559,1734888642281,-808.99,0.00013698,2]
[346319561,1734888642290,-500.0,0.00013698,2]
[346319563,1734888642300,-731.57,0.00013698,2]
[346319565,1734888642309,-500.0,0.00013698,2]
[346319566,1734888642318,-529.21,0.00013698,2]
[346319568,1734888642327,-500.0,0.00013698,2]
[346319570,1734888642337,-1720.33,0.00013698,2]
[346319572,1734888642346,-500.0,0.00013698,2]
[346319574,1734888642355,-500.0,0.00013698,2]
[346319576,1734888642364,-1389.74,0.00013698,2]
[346319578,1734888642374,-500.0,0.00013698,2]
[346319580,1734888642384,-500.0,0.00013698,2]
[346319582,1734888642393,-1073.38,0.00013698,2]
[346319584,1734888642403,-500.0,0.00013698,2]
[346319586,1734888642412,-840.16,0.00013698,2]
[346319588,1734888642421,-500.0,0.00013698,2]
[346319590,1734888642430,-848.51,0.00013698,2]
[346319592,1734888642440,-506.1,0.00013698,2]
[346319594,1734888642450,-785.65,0.00013698,2]
[346319596,1734888642463,-500.0,0.00013698,2]
[346319599,1734888642473,-500.0,0.00013698,2]
[346319601,1734888642482,-500.0,0.00013698,2]
[346319603,1734888642491,-500.0,0.00013698,2]
[346319604,1734888642500,-363.12853188,0.00013698,2]
[346319607,1734888642510,-500.0,0.00013698,2]
[346319609,1734888642519,-500.0,0.00013698,2]
[346319610,1734888642528,-1574.96,0.00013698,2]
[346319613,1734888642537,-500.0,0.00013698,2]
[346319615,1734888642547,-500.0,0.00013698,2]
[346319617,1734888642556,-151.0,0.00013698,2]
[346319618,1734888642565,-151.0,0.00013698,2]
[346319620,1734888642575,-500.0,0.00013698,2]
[346319622,1734888642584,-500.0,0.00013698,2]
[346319625,1734888642593,-1200.29,0.00013698,2]
[346319626,1734888642602,-500.0,0.00013698,2]
[346319629,1734888642612,-500.0,0.00013698,2]
[346319631,1734888642622,-500.0,0.00013698,2]
[346319633,1734888642631,-564.19,0.00013698,2]
[346319635,1734888642640,-1210.79,0.00013698,2]
[346319637,1734888642649,-500.0,0.00013698,2]
[346319639,1734888642659,-500.0,0.00013698,2]
[346319641,1734888642667,-686.45,0.00013698,2]
[346319643,1734888642676,-578.09,0.00013698,2]
[346319645,1734888642686,-326.51465896,0.00013698,2]
[346319647,1734888642695,-500.0,0.00013698,2]
[346319648,1734888642704,-768.01,0.00013698,2]
[346319650,1734888642714,-500.0,0.00013698,2]
[346319653,1734888642723,-500.0,0.00013698,2]
[346319655,1734888642733,-351.792244,0.00013698,2]
[346319657,1734888642742,-351.792244,0.00013698,2]
[346319659,1734888642751,-351.792244,0.00013698,2]
[346319660,1734888642760,-351.792244,0.00013698,2]
[346319663,1734888642770,-351.792244,0.00013698,2]
[346319665,1734888642779,-525.63,0.00013698,2]
[346319667,1734888642788,-351.792244,0.00013698,2]
[346319669,1734888642798,-351.792244,0.00013698,2]
[346319671,1734888642807,-351.792244,0.00013698,2]
[346319673,1734888642816,-351.792244,0.00013698,2]
[346319675,1734888642825,-2420.72,0.00013698,2]
[346319677,1734888642834,-351.792244,0.00013698,2]
[346319679,1734888642843,-1597.05,0.00013698,2]
[346319681,1734888642852,-500.0,0.00013698,2]
[346319683,1734888642861,-505.03743176,0.00013698,2]
[346319686,1734888642881,-500.0,0.00013698,2]
[346319688,1734888642891,-500.0,0.00013698,2]
[346319690,1734888642903,-151.0,0.00013698,2]
[346319692,1734888642913,-151.0,0.00013698,2]
[346319694,1734888642923,-151.0,0.00013698,2]
[346319696,1734888642933,-151.0,0.00013698,2]
[346319698,1734888642944,-151.0,0.00013698,2]
[346319700,1734888642956,-151.0,0.00013698,2]
[346319702,1734888642966,-205.611076,0.00013698,2]
[346319704,1734888642976,-1769.19,0.00013698,2]
[346319706,1734888642986,-2270.6,0.00013698,2]
[346319708,1734888642996,-853.11,0.00013698,2]
[346319710,1734888643006,-2037.73,0.00013698,2]
[346319712,1734888643016,-595.03,0.00013698,2]
[346319714,1734888643025,-500.0,0.00013698,2]
[346319716,1734888643035,-729.07,0.00013698,2]
[346319718,1734888643044,-500.0,0.00013698,2]
[346319720,1734888643054,-500.0,0.00013698,2]
[346319723,1734888643064,-638.11,0.00013698,2]
[346319725,1734888643074,-500.0,0.00013698,2]
[346319727,1734888643083,-500.0,0.00013698,2]
[346319729,1734888643093,-151.0,0.00013698,2]
[346319731,1734888643103,-151.0,0.00013698,2]
[346319733,1734888643112,-151.0,0.00013698,2]
[346319735,1734888643121,-151.0,0.00013698,2]
[346319737,1734888643131,-151.0,0.00013698,2]
[346319739,1734888643140,-151.0,0.00013698,2]
[346319741,1734888643150,-785.8,0.00013698,2]
[346319743,1734888643160,-500.0,0.00013698,2]
[346319745,1734888643170,-500.0,0.00013698,2]
[346319747,1734888643180,-151.0,0.00013698,2]
[346319749,1734888643189,-1686.32,0.00013698,2]
[346319751,1734888643198,-151.0,0.00013698,2]
[346319753,1734888643209,-500.0,0.00013698,2]
[346319755,1734888643218,-151.0,0.00013698,2]
[346319757,1734888643227,-151.0,0.00013698,2]
[346319759,1734888643237,-198.839024,0.00013698,2]
[346319761,1734888643247,-1263.25,0.00013698,2]
[346319763,1734888643256,-500.0,0.00013698,2]
[346319766,1734888643266,-500.0,0.00013698,2]
[346319768,1734888643275,-500.0,0.00013698,2]
[346319770,1734888643285,-2727.06,0.00013698,2]
[346319772,1734888643294,-644.58,0.00013698,2]
[346319774,1734888643304,-1220.71,0.00013698,2]
[346319776,1734888643314,-151.0,0.00013698,2]
[346319778,1734888643323,-151.0,0.00013698,2]
[346319780,1734888643332,-151.0,0.00013698,2]
[346319782,1734888643341,-151.0,0.00013698,2]
[346319784,1734888643351,-500.0,0.00013698,2]
[346319786,1734888643361,-572.06,0.00013698,2]
[346319788,1734888643371,-1218.73,0.00013698,2]
[346319790,1734888643380,-500.0,0.00013698,2]
[346319792,1734888643389,-500.0,0.00013698,2]
[346319794,1734888643400,-500.0,0.00013698,2]
[346319796,1734888643409,-319.745159,0.00013698,2]
[346319798,1734888643419,-319.745159,0.00013698,2]
[346319800,1734888643428,-319.745159,0.00013698,2]
[346319802,1734888643438,-319.745159,0.00013698,2]
[346319804,1734888643447,-500.0,0.00013698,2]
[346319806,1734888643457,-338.19681267,0.00013698,2]
[346319808,1734888643467,-319.745159,0.00013698,2]
[346319810,1734888643476,-1195.66,0.00013698,2]
[346319812,1734888643486,-319.745159,0.00013698,2]
[346319815,1734888643495,-500.0,0.00013698,2]
[346319817,1734888643505,-319.745159,0.00013698,2]
[346319819,1734888643514,-319.745159,0.00013698,2]
[346319821,1734888643523,-319.745159,0.00013698,2]
[346319823,1734888643533,-319.745159,0.00013698,2]
[346319825,1734888643542,-500.0,0.00013698,2]
[346319827,1734888643551,-319.745159,0.00013698,2]
[346319829,1734888643560,-319.745159,0.00013698,2]
[346319831,1734888643569,-500.0,0.00013698,2]
[346319833,1734888643580,-909.12,0.00013698,2]
[346319835,1734888643590,-821.25,0.00013698,2]
[346319837,1734888643600,-1703.56,0.00013698,2]
[346319839,1734888643610,-500.0,0.00013698,2]
[346319841,1734888643620,-977.33,0.00013698,2]
[346319843,1734888643630,-1756.51,0.00013698,2]
[346319845,1734888643639,-500.0,0.00013698,2]
[346319847,1734888643648,-534.68,0.00013698,2]
[346319849,1734888643657,-500.0,0.00013698,2]
[346319852,1734888643667,-1179.98,0.00013698,2]
[346319854,1734888643676,-1406.41,0.00013698,2]
[346319856,1734888643686,-500.0,0.00013698,2]
[346319858,1734888643695,-247.523754,0.00013698,2]
[346319860,1734888643704,-247.523754,0.00013698,2]
[346319862,1734888643714,-247.523754,0.00013698,2]
[346319863,1734888643723,-247.523754,0.00013698,2]
[346319865,1734888643733,-247.523754,0.00013698,2]
[346319868,1734888643743,-247.523754,0.00013698,2]
[346319870,1734888643754,-710.31,0.00013698,2]
[346319872,1734888643764,-247.523754,0.00013698,2]
[346319874,1734888643774,-247.523754,0.00013698,2]
[346319876,1734888643782,-656.56,0.00013698,2]
[346319879,1734888643791,-247.523754,0.00013698,2]
[346319881,1734888643801,-247.523754,0.00013698,2]
[346319882,1734888643810,-247.523754,0.00013698,2]
[346319883,1734888643819,-247.523754,0.00013698,2]
[346319884,1734888643828,-500.0,0.00013698,2]
[346319885,1734888643838,-500.0,0.00013698,2]
[346319886,1734888643847,-500.0,0.00013698,2]
[346319887,1734888643856,-586.28,0.00013698,2]
[346319888,1734888643865,-519.87,0.00013698,2]
[346319889,1734888643874,-925.49,0.00013698,2]
[346319890,1734888643883,-2051.24,0.00013698,2]
[346319891,1734888643893,-500.0,0.00013698,2]
[346319892,1734888643905,-556.32,0.00013698,2]
[346319893,1734888643914,-584.77,0.00013698,2]
[346319894,1734888643923,-502.38239579,0.00013698,2]
[346319895,1734888643935,-500.0,0.00013698,2]
[346319896,1734888643945,-500.0,0.00013698,2]
[346319897,1734888643955,-500.0,0.00013698,2]
[346319899,1734888643964,-151.0,0.00013698,2]
[346319901,1734888643974,-151.0,0.00013698,2]
[346319903,1734888643984,-500.0,0.00013698,2]
[346319904,1734888643994,-151.0,0.00013698,2]
[346319907,1734888644004,-500.0,0.00013698,2]
[346319909,1734888644013,-151.0,0.00013698,2]
[346319911,1734888644022,-605.69,0.00013698,2]
[346319913,1734888644032,-500.0,0.00013698,2]
[346319915,1734888644041,-532.38,0.00013698,2]
[346319917,1734888644050,-4399.15,0.00013698,2]
[346319919,1734888644059,-402.94570598,0.00013698,2]
[346319921,1734888644069,-500.0,0.00013698,2]
[346319922,1734888644078,-767.74,0.00013698,2]
[346319924,1734888644088,-658.66,0.00013698,2]
[346319927,1734888644098,-1118.58,0.00013698,2]
[346319929,1734888644107,-500.0,0.00013698,2]
[346319931,1734888644126,-28492.44,0.00013698,2]
[346319932,1734888644138,-278.36156378,0.00013698,2]
[346319934,1734888644147,-500.0,0.00013698,2]
[346319937,1734888644157,-500.0,0.00013698,2]
[346319939,1734888644166,-500.0,0.00013698,2]
[346319941,1734888644176,-500.0,0.00013698,2]
[346319943,1734888644185,-500.0,0.00013698,2]
[346319945,1734888644194,-500.0,0.00013698,2]
[346319947,1734888644204,-864.82,0.00013698,2]
[346319949,1734888644213,-500.0,0.00013698,2]
[346319951,1734888644223,-6701.20626734,0.00013698,2]
[346319955,1734888644252,-1225.784631,0.00013698,2]
[346319957,1734888644265,-6378.08910166,0.00013698,2]
[346319959,1734888644276,-500.0,0.00013698,2]
[346319961,1734888644285,-819.14,0.00013698,2]
[346319963,1734888644295,-519.79594786,0.00013698,2]
[346320572,1734889640166,-160.82168765,0.00012461,2]
[346320573,1734889647106,-742.70342934,0.00012461,2]
[346320585,1734889751465,-2752.77394871,0.00012461,2]
[346320586,1734889762136,-96.1315986,0.00012461,2]
[346320587,1734889762159,-3732.4306643,0.00012618,2]
[346320588,1734889762184,-333.773,0.0001327,2]
[346320589,1734889785984,255.81293842,0.0001327,2]
[346320614,1734889832141,-64.02006158,0.0001327,2]
[346320616,1734889832151,-300.0,0.00013558,2]
[346320618,1734889832163,-300.0,0.00013558,2]
[346320620,1734889832173,-10569.8573204,0.00013559,2]
[346320622,1734889832182,-215.111,0.00013697,2]
[346320624,1734889832191,-500.0,0.00013697,2]
[346320626,1734889832204,-215.18550233,0.00013697,2]
[346320628,1734889832214,-454.7064036,0.00013697,2]
[346320630,1734889832224,-500.0,0.00013697,2]
[346320632,1734889832234,-500.0,0.00013697,2]
[346320634,1734889832244,-500.0,0.00013697,2]
[346320636,1734889832254,-500.0,0.00013697,2]
[346320638,1734889832263,-500.0,0.00013697,2]
[346320640,1734889832272,-500.0,0.00013697,2]
[346320642,1734889832285,-500.0,0.00013697,2]
[346320644,1734889832295,-500.0,0.00013697,2]
[346320646,1734889832304,-500.0,0.00013697,2]
[346320648,1734889832314,-500.0,0.00013697,2]
[346320650,1734889832323,-608.84051616,0.00013697,2]
[346320652,1734889832332,-631.60750764,0.00013697,2]
[346320654,1734889832342,-500.0,0.00013697,2]
[346320656,1734889832353,-500.0,0.00013697,2]
[346320658,1734889832362,-500.0,0.00013697,2]
[346320660,1734889832372,-500.0,0.00013697,2]
[346320662,1734889832382,-500.0,0.00013697,2]
[346320664,1734889832392,-500.0,0.00013697,2]
[346320666,1734889832401,-500.0,0.00013697,2]
[346320668,1734889832412,-500.0,0.00013697,2]
[346320669,1734889832422,-500.0,0.00013697,2]
[346320671,1734889832431,-500.0,0.00013697,2]
[346320673,1734889832441,-500.0,0.00013697,2]
[346320675,1734889832450,-500.0,0.00013697,2]
[346320677,1734889832460,-500.0,0.00013697,2]
[346320679,1734889832469,-500.0,0.00013697,2]
[346320681,1734889832478,-500.32939967,0.00013697,2]
[346320683,1734889832488,-500.0,0.00013697,2]
[346320685,1734889832497,-500.0,0.00013697,2]
[346320687,1734889832507,-500.0,0.00013697,2]
[346320689,1734889832516,-545.24242152,0.00013697,2]
[346320691,1734889832525,-500.0,0.00013697,2]
[346320693,1734889832535,-500.0,0.00013697,2]
[346320695,1734889832545,-500.0,0.00013697,2]
[346320697,1734889832554,-151.0,0.00013698,2]
[346320699,1734889832563,-151.0,0.00013698,2]
[346320701,1734889832572,-151.0,0.00013698,2]
[346320703,1734889832582,-151.0,0.00013698,2]
[346320705,1734889832592,-151.0,0.00013698,2]
[346320707,1734889832601,-209.7674,0.00013698,2]
[346320709,1734889832611,-151.0,0.00013698,2]
[346320711,1734889832620,-151.0,0.00013698,2]
[346320713,1734889832630,-151.0,0.00013698,2]
[346320715,1734889832639,-151.0,0.00013698,2]
[346320717,1734889832649,-151.0,0.00013698,2]
[346320719,1734889832658,-151.0,0.00013698,2]
[346320721,1734889832668,-151.0,0.00013698,2]
[346320723,1734889832678,-151.0,0.00013698,2]
[346320725,1734889832688,-500.0,0.00013698,2]
[346320727,1734889832699,-500.0,0.00013698,2]
[346320729,1734889832708,-500.0,0.00013698,2]
[346320730,1734889832717,-500.0,0.00013698,2]
[346320732,1734889832727,-500.0,0.00013698,2]
[346320734,1734889832736,-500.0,0.00013698,2]
[346320736,1734889832746,-500.0,0.00013698,2]
[346320738,1734889832756,-500.0,0.00013698,2]
[346320740,1734889832765,-644.96,0.00013698,2]
[346320742,1734889832775,-500.0,0.00013698,2]
[346320744,1734889832783,-500.0,0.00013698,2]
[346320746,1734889832793,-500.0,0.00013698,2]
[346320748,1734889832803,-500.0,0.00013698,2]
[346320750,1734889832812,-151.0,0.00013698,2]
[346320752,1734889832821,-151.0,0.00013698,2]
[346320754,1734889832830,-500.0,0.00013698,2]
[346320756,1734889832839,-500.0,0.00013698,2]
[346320758,1734889832848,-500.0,0.00013698,2]
[346320759,1734889832857,-542.77,0.00013698,2]
[346320761,1734889832867,-11.52581268,0.00013698,2]
[346320764,1734889832880,-767.62418732,0.00013698,2]
[346320766,1734889832889,-500.0,0.00013698,2]
[346320768,1734889832898,-500.0,0.00013698,2]
[346320770,1734889832907,-151.0,0.00013698,2]
[346320772,1734889832917,-151.0,0.00013698,2]
[346320774,1734889832927,-151.0,0.00013698,2]
[346320776,1734889832936,-151.0,0.00013698,2]
[346320778,1734889832945,-151.0,0.00013698,2]
[346320780,1734889832955,-151.0,0.00013698,2]
[346320782,1734889832963,-151.0,0.00013698,2]
[346320784,1734889832973,-151.0,0.00013698,2]
[346320786,1734889832982,-50.06614901,0.00013698,2]
[346320787,1734889832995,-216.87971299,0.00013698,2]
[346320788,1734889833004,-512.75688762,0.00013698,2]
[346320789,1734889833013,-500.0,0.00013698,2]
[346320790,1734889833023,-151.0,0.00013698,2]
[346320791,1734889833032,-151.0,0.00013698,2]
[346320792,1734889833042,-151.0,0.00013698,2]
[346320793,1734889833051,-151.0,0.00013698,2]
[346320794,1734889833060,-151.0,0.00013698,2]
[346320795,1734889833070,-151.0,0.00013698,2]
[346320796,1734889833080,-500.0,0.00013698,2]
[346320797,1734889833089,-500.0,0.00013698,2]
[346320798,1734889833099,-500.0,0.00013698,2]
[346320799,1734889833108,-203.16154986,0.00013698,2]
[346320840,1734889837823,-296.83845014,0.00013698,2]
[346320841,1734889837833,-500.0,0.00013698,2]
[346320842,1734889837842,-151.0,0.00013698,2]
[346320843,1734889837852,-500.0,0.00013698,2]
[346320844,1734889837861,-500.0,0.00013698,2]
[346320845,1734889837870,-500.0,0.00013698,2]
[346320846,1734889837879,-500.0,0.00013698,2]
[346320847,1734889837889,-500.0,0.00013698,2]
[346320848,1734889837899,-500.0,0.00013698,2]
[346320849,1734889837908,-500.0,0.00013698,2]
[346320850,1734889837918,-500.0,0.00013698,2]
[346320851,1734889837927,-500.0,0.00013698,2]
[346320852,1734889837937,-500.0,0.00013698,2]
[346320853,1734889837946,-321.367177,0.00013698,2]
[346320854,1734889837956,-321.367177,0.00013698,2]
[346320855,1734889837965,-321.367177,0.00013698,2]
[346320856,1734889837975,-321.367177,0.00013698,2]
[346320857,1734889837984,-321.367177,0.00013698,2]
[346320858,1734889837993,-321.367177,0.00013698,2]
[346320859,1734889838192,-321.367177,0.00013698,2]
[346320860,1734889838204,-321.367177,0.00013698,2]
[346320861,1734889838214,-500.0,0.00013698,2]
[346320862,1734889838223,-500.0,0.00013698,2]
[346320863,1734889838233,-500.0,0.00013698,2]
[346320864,1734889838243,-500.0,0.00013698,2]
[346320865,1734889838253,-500.0,0.00013698,2]
[346320866,1734889838263,-500.0,0.00013698,2]
[346320867,1734889838272,-1309.993262,0.00013698,2]
[346320868,1734889838283,-1309.993262,0.00013698,2]
[346320869,1734889838293,-1309.993262,0.00013698,2]
[346320870,1734889838303,-1309.993262,0.00013698,2]
[346320871,1734889838312,-1309.993262,0.00013698,2]
[346320872,1734889838323,-1309.993262,0.00013698,2]
[346320873,1734889838332,-500.0,0.00013698,2]
[346320874,1734889838342,-737.15,0.00013698,2]
[346320875,1734889838352,-77.427742,0.00013698,2]
[346320917,1734889839978,-535.77515254,0.00013698,2]
[346320919,1734889839990,-25.76710546,0.00013698,2]
[346320922,1734889839999,-817.56,0.00013698,2]
[346320924,1734889840009,-500.0,0.00013698,2]
[346320925,1734889840018,-3.93533194,0.00013698,2]
[346321500,1734889845996,-566.30466806,0.00013698,2]
[346321502,1734889846005,-500.0,0.00013698,2]
[346321504,1734889846014,-553.05363594,0.00013698,2]
[346321506,1734889846026,-50.56636406,0.00013698,2]
[346321508,1734889846035,-517.46,0.00013698,2]
[346321510,1734889846043,-211.37433292,0.00013698,2]
[346321519,1734889846115,-487.31566708,0.00013698,2]
[346321521,1734889846124,-500.0,0.00013698,2]
[346321523,1734889846134,-500.0,0.00013698,2]
[346321525,1734889846143,-714.49,0.00013698,2]
[346321527,1734889846152,-500.0,0.00013698,2]
[346321529,1734889846161,-987.8,0.00013698,2]
[346321531,1734889846170,-617.73,0.00013698,2]
[346321533,1734889846179,-500.0,0.00013698,2]
[346321535,1734889846188,-500.0,0.00013698,2]
[346321538,1734889846197,-500.0,0.00013698,2]
[346321540,1734889846211,-500.0,0.00013698,2]
[346321542,1734889846220,-593.02737489,0.00013698,2]
[346321544,1734889846229,-500.0,0.00013698,2]
[346321546,1734889846238,-500.0,0.00013698,2]
[346321547,1734889846247,-1325.29,0.00013698,2]
[346321549,1734889846256,-2049.08,0.00013698,2]
[346321552,1734889846265,-603.7691089,0.00013698,2]
[346321554,1734889846274,-500.0,0.00013698,2]
[346321555,1734889846286,-500.0,0.00013698,2]
[346321557,1734889846296,-500.0,0.00013698,2]
[346321559,1734889846305,-234.36,0.00013698,2]
[346321561,1734889846314,-680.72,0.00013698,2]
[346321563,1734889846324,-151.0,0.00013698,2]
[346321565,1734889846333,-151.0,0.00013698,2]
[346321567,1734889846342,-151.0,0.00013698,2]
[346321569,1734889846352,-151.0,0.00013698,2]
[346321571,1734889846362,-500.0,0.00013698,2]
[346321574,1734889846372,-151.0,0.00013698,2]
[346321576,1734889846381,-151.0,0.00013698,2]
[346321578,1734889846390,-151.0,0.00013698,2]
[346321580,1734889846399,-151.0,0.00013698,2]
[346321582,1734889846409,-500.0,0.00013698,2]
[346321584,1734889846418,-3916.28,0.00013698,2]
[346321586,1734889846428,-500.0,0.00013698,2]
[346321588,1734889846437,-175.896122,0.00013698,2]
[346321590,1734889846447,-500.0,0.00013698,2]
[346321592,1734889846456,-175.896122,0.00013698,2]
[346321594,1734889846465,-175.896122,0.00013698,2]
[346321596,1734889846475,-175.896122,0.00013698,2]
[346321598,1734889846483,-823.33,0.00013698,2]
[346321600,1734889846493,-175.896122,0.00013698,2]
[346321602,1734889846502,-500.0,0.00013698,2]
[346321604,1734889846511,-175.896122,0.00013698,2]
[346321606,1734889846520,-175.896122,0.00013698,2]
[346321608,1734889846529,-175.896122,0.00013698,2]
[346321610,1734889846538,-580.45,0.00013698,2]
[346321612,1734889846547,-265.198311,0.00013698,2]
[346321614,1734889846557,-500.0,0.00013698,2]
[346321616,1734889846566,-1641.29,0.00013698,2]
[346321618,1734889846575,-533.14,0.00013698,2]
[346321620,1734889846586,-735.75,0.00013698,2]
[346321622,1734889846595,-1648.65,0.00013698,2]
[346321624,1734889846604,-500.0,0.00013698,2]
[346321626,1734889846613,-2052.27,0.00013698,2]
[346321628,1734889846623,-500.0,0.00013698,2]
[346321630,1734889846632,-857.21,0.00013698,2]
[346321632,1734889846641,-500.0,0.00013698,2]
[346321634,1734889846650,-1354.88,0.00013698,2]
[346321636,1734889846659,-500.0,0.00013698,2]
[346321638,1734889846668,-500.0,0.00013698,2]
[346321640,1734889846677,-1255.87,0.00013698,2]
[346321642,1734889846687,-507.16,0.00013698,2]
[346321644,1734889846696,-500.0,0.00013698,2]
[346321647,1734889846707,-813.16,0.00013698,2]
[346321649,1734889846716,-558.07,0.00013698,2]
[346321651,1734889846725,-500.0,0.00013698,2]
[346321653,1734889846734,-151.0,0.00013698,2]
[346321654,1734889846744,-1331.84,0.00013698,2]
[346321656,1734889846753,-151.0,0.00013698,2]